bitfinex-derivatives/quotes_BTCF0:USTF0_20241223
["timestamp","ask_amount","ask_price","bid_price","bid_amount"]
[1734962643894,0.1207,94946.0,94920.0,0.3608]
[1734962644196,0.3608,94939.0,94920.0,0.3608]
[1734962644396,0.3608,94939.0,94922.0,0.052729]
[1734962644599,0.3608,94939.0,94920.0,0.48844419]
[1734962645103,0.3608,94939.0,94921.0,0.01134975]
[1734962645397,0.3608,94939.0,94933.0,0.052723]
[1734962645606,0.052722,94937.0,94924.0,0.052729]
[1734962645901,0.3608,94926.0,94924.0,0.052729]
[1734962646103,0.36172,94939.0,94937.0,0.052721]
[1734962646301,0.3608,94939.0,94937.0,0.052721]
[1734962646499,0.3638,94939.0,94937.0,0.052721]
[1734962647997,0.3718,94939.0,94937.0,0.052721]
[1734962648499,0.3658,94939.0,94937.0,0.052721]
[1734962648990,0.3628,94939.0,94937.0,0.052721]
[1734962651712,0.00092,94947.0,94946.0,0.052716]
[1734962651908,0.3608,94979.0,94965.0,0.052706]
[1734962652298,0.10696797,94966.0,94965.0,0.052706]
[1734962652603,0.18558041,94980.0,94972.0,0.052702]
[1734962652810,0.00157962,94988.0,94986.0,0.052694]
[1734962653205,0.00157962,94988.0,94978.0,0.12764419]
[1734962653692,0.3608,94984.0,94972.0,0.3608]
[1734962653894,0.052702,94973.0,94962.0,0.3608]
[1734962654605,0.005,94966.0,94965.0,0.001]
[1734962655111,0.052702,94973.0,94965.0,0.052705]
[1734962655501,0.052702,94973.0,94962.0,0.3638]
[1734962655502,0.3608,94984.0,94978.0,0.052698]
[1734962655699,0.00157962,94988.0,94974.0,0.12764419]
[1734962656302,0.00157962,94988.0,94982.0,0.052696]
[1734962656498,0.00157962,94988.0,94980.0,0.3608]
[1734962656704,0.00157962,94988.0,94986.0,0.052694]
[1734962657608,0.052698,94979.0,94973.0,0.052701]
[1734962657818,0.41907362,94988.0,94976.0,0.052699]
[1734962658007,0.41907362,94988.0,94983.0,0.052695]
[1734962658209,0.36237962,94988.0,94986.0,0.005]
[1734962658411,0.00157962,94988.0,94986.0,0.057694]
[1734962658712,0.1,95000.0,94986.0,0.052694]
[1734962658916,0.1,95000.0,94999.0,0.052687]
[1734962660307,0.3608,95024.0,95022.0,0.052674]
[1734962660802,0.052668,95033.0,95017.0,0.3608]
[1734962661005,0.052669,95032.0,95024.0,0.052673]
[1734962661213,0.3608,95034.0,95026.0,0.3608]
[1734962661425,0.3608,95034.0,95032.0,0.052669]
[1734962661918,0.3608,95044.0,95026.0,0.340471]
[1734962662311,0.052667,95035.0,95028.0,0.052671]
[1734962662810,0.052667,95035.0,95026.0,0.002]
[1734962662811,0.3608,95035.0,95026.0,0.002]
[1734962663018,0.052671,95028.0,95024.0,0.003]
[1734962663317,0.052672,95027.0,95025.0,0.052672]
[1734962664015,0.052668,95034.0,95018.0,0.052676]
[1734962664209,0.052672,95026.0,95024.0,0.005]
[1734962664410,0.413472,95026.0,95024.0,0.005]
[1734962664620,0.052672,95026.0,95024.0,0.005]
[1734962665225,0.052672,95026.0,95022.0,0.052674]
[1734962665517,0.052672,95026.0,95025.0,0.004]
[1734962666114,0.3608,95034.0,95029.0,0.05267]
[1734962666313,0.3608,95034.0,95030.0,0.052669]
[1734962666509,0.36216,95045.0,95025.0,0.004]
[1734962666817,0.1151,95048.0,95024.0,0.003]
[1734962666818,0.052666,95037.0,95034.0,0.052667]
[1734962667412,0.052667,95036.0,95034.0,0.052667]
[1734962667809,0.052669,95031.0,95030.0,0.002]
[1734962668012,0.052672,95026.0,95025.0,0.003]
[1734962668612,0.052678,95016.0,95014.0,0.052678]
[1734962669012,0.052678,95016.0,95012.0,0.00157866]
[1734962669013,0.052674,95022.0,95012.0,0.00157866]
[1734962669214,0.3608,95028.0,95012.0,0.05425866]
[1734962669420,0.052675,95021.0,95019.0,0.052676]
[1734962670115,0.052677,95018.0,95013.0,0.052679]
[1734962670312,0.002,95022.0,95013.0,0.052679]
[1734962670719,0.3608,95028.0,95013.0,0.052679]
[1734962670912,0.003,95021.0,95013.0,0.052679]
[1734962671107,0.052677,95017.0,95013.0,0.052679]
[1734962671312,0.3608,95028.0,95012.0,0.00157866]
[1734962671313,0.052674,95022.0,95012.0,0.00157866]
[1734962671519,0.003,95022.0,95020.0,0.052675]
[1734962671912,0.055674,95022.0,95020.0,0.052675]
[1734962672217,0.052677,95018.0,95016.0,0.3608]
[1734962672519,0.052677,95018.0,95016.0,0.413477]
[1734962672817,0.052677,95018.0,95012.0,0.00157866]
[1734962672818,0.052679,95013.0,95012.0,0.00157866]
[1734962674114,0.052679,95013.0,95012.0,0.00257866]
[1734962675218,0.052679,95013.0,95012.0,0.001]
[1734962675618,0.413479,95013.0,95012.0,0.001]
[1734962675816,0.3608,95013.0,95012.0,0.002]
[1734962676012,0.004,95013.0,95012.0,0.01341461]
[1734962676523,0.3608,95034.0,95033.0,0.052668]
[1734962677323,0.09197916,95037.0,95036.0,0.052666]
[1734962677820,0.00064,95054.0,95053.0,0.052657]
[1734962678012,0.45277916,95059.0,95044.0,0.3608]
[1734962678214,0.05266,95048.0,95047.0,0.05266]
[1734962679216,0.45277916,95059.0,95038.0,0.12764419]
[1734962679417,0.00064,95059.0,95056.0,0.052655]
[1734962679621,0.09197916,95074.0,95073.0,0.052646]
[1734962680425,0.09197916,95074.0,95067.0,0.340446]
[1734962680624,0.09197916,95074.0,95073.0,0.052646]
[1734962681315,0.052637,95090.0,95067.0,0.340446]
[1734962681519,0.09197916,95091.0,95077.0,0.3608]
[1734962681914,0.05264,95084.0,95079.0,0.052642]
[1734962682114,0.05264,95084.0,95081.0,0.052641]
[1734962682326,0.05264,95084.0,95082.0,0.052641]
[1734962682630,0.052645,95075.0,95073.0,0.001]
[1734962682927,0.3608,95074.0,95073.0,0.001]
[1734962683730,0.3608,95074.0,95073.0,0.053646]
[1734962683928,0.3608,95074.0,95073.0,0.052646]
[1734962684134,0.3608,95084.0,95073.0,0.052646]
[1734962684135,0.052643,95079.0,95073.0,0.052646]
[1734962684320,0.09197916,95081.0,95073.0,0.052646]
[1734962684522,0.052643,95078.0,95074.0,0.052645]
[1734962684723,0.09197916,95081.0,95060.0,0.12764419]
[1734962684916,0.09197916,95081.0,95055.0,0.3608]
[1734962685123,0.09197916,95081.0,95073.0,0.001]
[1734962685325,0.09197916,95081.0,95080.0,0.052642]
[1734962685522,0.052643,95079.0,95069.0,0.052648]
[1734962685726,0.052643,95079.0,95074.0,0.052645]
[1734962685925,0.052643,95079.0,95077.0,0.052643]
[1734962686428,0.001,95081.0,95080.0,0.052642]
[1734962686622,0.004,95081.0,95080.0,0.052642]
[1734962687023,0.001,95081.0,95080.0,0.06403755]
[1734962687223,0.001,95081.0,95080.0,0.01139555]
[1734962687624,0.052641,95082.0,95080.0,0.01139555]
[1734962687819,0.052641,95082.0,95081.0,0.01139555]
[1734962688020,0.052641,95082.0,95064.0,0.05265]
[1734962688220,0.052641,95082.0,95080.0,0.052642]
[1734962688425,0.052641,95082.0,95080.0,0.053642]
[1734962688831,0.3608,95084.0,95080.0,0.002]
[1734962689032,0.3608,95084.0,95083.0,0.05264]
[1734962689830,0.3608,95084.0,95071.0,0.3608]
[1734962690031,0.052643,95078.0,95077.0,0.052644]
[1734962691341,0.052643,95078.0,95064.0,0.001]
[1734962691342,0.41508,95084.0,95083.0,0.001]
[1734962691530,0.41444,95084.0,95083.0,0.001]
[1734962691829,0.3618,95084.0,95070.0,0.052647]
[1734962692030,0.052647,95072.0,95071.0,0.005]
[1734962692630,0.052647,95072.0,95070.0,0.052647]
[1734962693336,0.052652,95063.0,95062.0,0.052652]
[1734962693747,0.001,95072.0,95071.0,0.052647]
[1734962694735,0.001,95072.0,95057.0,0.00157806]
[1734962694736,0.052654,95059.0,95057.0,0.00157806]
[1734962694928,0.3608,95058.0,95057.0,0.00157806]
[1734962696037,0.3698,95058.0,95057.0,0.001]
[1734962696632,0.3608,95058.0,95057.0,0.004]
[1734962696828,0.05267,95029.0,95028.0,0.00157839]
[1734962697224,0.3608,95042.0,95028.0,0.00157839]
[1734962697425,0.052667,95036.0,95028.0,0.00157839]
[1734962697642,0.052667,95036.0,95034.0,0.052667]
[1734962697837,0.3608,95042.0,95041.0,0.052664]
[1734962698142,0.3608,95074.0,95042.0,0.052663]
[1734962698332,0.3608,95074.0,95057.0,0.003]
[1734962698531,0.052647,95071.0,95068.0,0.052648]
[1734962698931,0.14462616,95071.0,95068.0,0.052648]
[1734962699243,0.09197916,95071.0,95070.0,0.413448]
[1734962699442,0.15441036,95084.0,95070.0,0.3608]
[1734962699634,0.052642,95081.0,95078.0,0.052643]
[1734962699937,0.15441036,95084.0,95081.0,0.052641]
[1734962700137,0.15441036,95084.0,95074.0,0.12764419]
[1734962700335,0.15441036,95084.0,95070.0,0.48844419]
[1734962700540,0.3608,95095.0,95076.0,0.052644]
[1734962700541,0.052641,95082.0,95076.0,0.052644]
[1734962700833,0.052641,95082.0,95070.0,0.12764419]
[1734962700834,0.052641,95082.0,95077.0,1.5]
[1734962701425,0.052641,95082.0,95074.0,0.052645]
[1734962701738,0.3608,95083.0,95081.0,0.052641]
[1734962701946,0.052637,95090.0,95089.0,0.052637]
[1734962702331,0.3608,95095.0,95080.0,0.12764419]
[1734962702537,0.052634,95094.0,95080.0,0.12764419]
[1734962702839,0.3608,95095.0,95089.0,0.052637]
[1734962703244,0.3608,95095.0,95080.0,0.12764419]
[1734962703436,0.413434,95095.0,95094.0,0.052634]
[1734962704447,0.052636,95092.0,95089.0,0.004]
[1734962704625,0.052636,95092.0,95091.0,0.052636]
[1734962705335,0.052636,95092.0,95080.0,0.10928019]
[1734962705543,0.3608,95095.0,95089.0,0.002]
[1734962705841,0.052637,95090.0,95089.0,0.002]
[1734962706940,0.052638,95088.0,95086.0,0.052639]
[1734962708846,0.053638,95088.0,95086.0,0.052639]
[1734962709035,0.057638,95088.0,95086.0,0.052639]
[1734962709738,0.052644,95084.0,95080.0,0.10928019]
[1734962709946,0.005,95088.0,95061.0,0.61186516]
[1734962710253,0.052648,95076.0,95074.0,0.052649]
[1734962711434,0.05265,95073.0,95070.0,0.052651]
[1734962711634,0.3608,95075.0,95067.0,0.02839218]
[1734962711943,0.052652,95069.0,95068.0,0.00357794]
[1734962712434,0.052652,95069.0,95068.0,0.00157794]
[1734962712845,0.002,95073.0,95071.0,0.052651]
[1734962713030,0.05265,95073.0,95071.0,0.052651]
[1734962713443,0.3608,95075.0,95074.0,0.052649]
[1734962713836,0.3608,95075.0,95074.0,0.06409786]
[1734962714035,0.12359884,95081.0,95080.0,0.052646]
[1734962714245,0.12359884,95081.0,95080.0,0.06409486]
[1734962714635,0.12359884,95087.0,95080.0,0.06409486]
[1734962714840,0.12359884,95087.0,95086.0,0.413443]
[1734962715136,0.15441036,95094.0,95093.0,0.052639]
[1734962715947,0.15441036,95094.0,95093.0,0.06409577]
[1734962716343,0.009,95094.0,95093.0,0.06409577]
[1734962717747,0.1,95100.0,95099.0,0.052635]
[1734962717952,0.1,95100.0,95099.0,0.064092]
[1734962718541,0.1,95100.0,95099.0,1.564092]
[1734962719239,0.052626,95116.0,95113.0,0.052628]
[1734962719435,0.15441036,95128.0,95113.0,0.064085]
[1734962719642,0.05420494,95115.0,95113.0,0.064085]
[1734962720748,0.05420494,95115.0,95113.0,0.052628]
[1734962721140,0.05420494,95115.0,95113.0,0.053628]
[1734962721339,0.05420494,95115.0,95113.0,0.001]
[1734962721543,0.052631,95109.0,95108.0,0.05263]
[1734962721745,0.052631,95109.0,95108.0,0.0640881]
[1734962722749,0.052631,95109.0,95108.0,0.0670881]
[1734962723148,0.15513036,95129.0,95128.0,0.052619]
[1734962723347,0.15441036,95129.0,95128.0,0.052619]
[1734962723553,0.15441036,95129.0,95128.0,0.06406126]
[1734962723749,0.15441036,95129.0,95128.0,0.052619]
[1734962724043,0.3608,95133.0,95128.0,0.01143713]
[1734962724248,0.3608,95133.0,95120.0,1.5]
[1734962724249,0.3608,95133.0,95132.0,0.052617]
[1734962724951,0.7216,95133.0,95108.0,0.00157716]
[1734962725152,0.413423,95122.0,95116.0,0.052626]
[1734962725451,0.3608,95122.0,95101.0,1.5]
[1734962725636,0.3608,95122.0,95110.0,0.052629]
[1734962725840,0.052625,95119.0,95101.0,1.5]
[1734962726051,0.052625,95119.0,95108.0,0.001]
[1734962726553,0.052625,95119.0,95115.0,0.052626]
[1734962727049,0.052625,95118.0,95115.0,0.052626]
[1734962727747,0.36244,95122.0,95121.0,0.052623]
[1734962727940,0.3618,95122.0,95121.0,0.052623]
[1734962728146,0.3608,95122.0,95121.0,0.052623]
[1734962728339,0.36152,95133.0,95132.0,0.052617]
[1734962728548,0.3608,95133.0,95132.0,0.052617]
[1734962728954,0.052614,95139.0,95121.0,1.554623]
[1734962729151,0.052614,95139.0,95137.0,0.052614]
[1734962730349,0.052614,95139.0,95126.0,0.340414]
[1734962730745,0.052614,95139.0,95132.0,0.001]
[1734962731047,0.002,95133.0,95132.0,0.053617]
[1734962731263,0.052615,95137.0,95132.0,0.001]
[1734962731451,0.052615,95137.0,95135.0,0.052615]
[1734962731651,0.005,95139.0,95138.0,0.052614]
[1734962731854,0.001,95139.0,95138.0,0.052614]
[1734962732153,0.005,95139.0,95138.0,0.052614]
[1734962732352,0.004,95139.0,95138.0,0.052614]
[1734962732549,0.36144,95144.0,95138.0,0.052614]
[1734962732759,0.36305716,95153.0,95152.0,0.052606]
[1734962732946,0.36237716,95153.0,95152.0,0.052606]
[1734962733165,0.21651048,95180.0,95152.0,0.052606]
[1734962733166,0.1660795,95211.0,95186.0,0.3608]
[1734962733448,0.4813595,95225.0,95210.0,0.7216]
[1734962733750,0.4813595,95225.0,95224.0,0.3608]
[1734962733751,0.052566,95225.0,95224.0,0.3608]
[1734962733947,0.4813595,95225.0,95224.0,0.3608]
[1734962734544,0.3608,95248.0,95232.0,0.052561]
[1734962734854,0.3608,95248.0,95224.0,0.3608]
[1734962734855,0.052555,95245.0,95240.0,0.3608]
[1734962735055,0.4813595,95236.0,95232.0,0.052562]
[1734962735249,0.052557,95241.0,95229.0,0.3608]
[1734962735453,0.4813595,95230.0,95229.0,0.2878]
[1734962736464,0.3608,95252.0,95229.0,0.2878]
[1734962736650,0.052558,95239.0,95229.0,0.2878]
[1734962736850,0.29208501,95231.0,95229.0,0.73003346]
[1734962737245,0.74602077,95249.0,95229.0,0.73003346]
[1734962737246,0.001,95241.0,95230.0,0.052563]
[1734962737453,0.12764419,95270.0,95239.0,0.3608]
[1734962737652,0.84942077,95262.0,95251.0,0.052552]
[1734962738053,0.84942077,95262.0,95255.0,0.3608]
[1734962738252,0.29208501,95256.0,95247.0,0.3608]
[1734962738561,0.34463801,95248.0,95236.0,0.3608]
[1734962738776,0.29208501,95237.0,95236.0,0.3608]
[1734962739058,0.3608,95250.0,95236.0,0.3608]
[1734962739259,0.25745728,95247.0,95245.0,0.052554]
[1734962739660,0.2189,95262.0,95254.0,0.05255]
[1734962739850,0.25745728,95255.0,95254.0,0.05255]
[1734962740053,0.61825728,95255.0,95251.0,0.001]
[1734962740247,0.99332077,95255.0,95251.0,0.001]
[1734962740453,0.005,95247.0,95245.0,0.30971676]
[1734962740652,0.25745728,95246.0,95245.0,0.36227176]
[1734962740863,0.25745728,95246.0,95245.0,0.052555]
[1734962741062,0.88997805,95246.0,95245.0,0.052555]
[1734962741264,0.052547,95259.0,95238.0,0.3608]
[1734962741565,0.25745728,95251.0,95247.0,0.052553]
[1734962741761,0.68506777,95259.0,95238.0,0.413359]
[1734962741762,0.25745728,95240.0,95238.0,0.413359]
[1734962742062,0.052558,95240.0,95239.0,0.41898959]
[1734962742264,0.68507877,95240.0,95239.0,0.41898959]
[1734962742460,0.94253605,95240.0,95239.0,0.41898959]
[1734962742853,0.25745728,95240.0,95239.0,0.41898959]
[1734962743157,0.001,95259.0,95248.0,0.052549]
[1734962743466,0.68606477,95259.0,95249.0,0.052548]
[1734962743957,0.052545,95256.0,95249.0,0.052548]
[1734962744166,0.25745728,95250.0,95248.0,0.3608]
[1734962744464,0.25745728,95249.0,95248.0,0.415349]
[1734962744761,0.84998078,95262.0,95249.0,0.052549]
[1734962744961,0.67080528,95250.0,95248.0,0.002]
[1734962745158,0.25745728,95249.0,95248.0,0.002]
[1734962745559,0.88997805,95249.0,95248.0,0.002]
[1734962745769,0.25845728,95249.0,95248.0,0.002]
[1734962746060,0.001,95249.0,95247.0,0.29991579]
[1734962746761,0.007,95249.0,95247.0,0.29991579]
[1734962746956,0.007,95249.0,95247.0,0.05255]
[1734962747261,0.002,95249.0,95247.0,0.05255]
[1734962747757,0.052541,95265.0,95244.0,0.3608]
[1734962747958,0.25745728,95263.0,95260.0,0.052546]
[1734962748261,0.74382077,95269.0,95260.0,0.052546]
[1734962748262,0.25745728,95262.0,95260.0,0.052546]
[1734962748657,0.25745728,95262.0,95252.0,0.3608]
[1734962748852,0.31000228,95262.0,95252.0,0.3608]
[1734962749064,0.31000228,95262.0,95256.0,0.052548]
[1734962749862,0.31000228,95262.0,95258.0,0.052547]
[1734962750056,0.052546,95261.0,95254.0,0.052549]
[1734962750264,0.052546,95261.0,95252.0,0.38679906]
[1734962750462,0.052546,95261.0,95252.0,0.38595906]
[1734962750664,0.052546,95261.0,95259.0,1.5]
[1734962751264,0.052546,95261.0,95257.0,0.052548]
[1734962751668,0.052546,95261.0,95258.0,1.5]
[1734962752360,0.052546,95261.0,95257.0,0.052548]
[1734962752863,0.052546,95261.0,95258.0,1.5]
[1734962753164,0.61268662,95261.0,95258.0,1.5]
[1734962753355,0.61825728,95259.0,95252.0,0.0058]
[1734962753566,0.31000728,95254.0,95252.0,0.002]
[1734962753763,0.31000728,95254.0,95251.0,0.052551]
[1734962753960,0.31000728,95254.0,95251.0,0.2380049]
[1734962754764,0.052551,95253.0,95251.0,0.2380049]
[1734962755068,0.052551,95253.0,95251.0,0.2410049]
[1734962755260,0.31000828,95253.0,95251.0,0.055551]
[1734962755456,0.25745728,95253.0,95244.0,0.3608]
[1734962755770,0.052547,95259.0,95258.0,0.052548]
[1734962756072,0.61268662,95259.0,95258.0,0.052548]
[1734962756261,0.25745728,95259.0,95258.0,0.052548]
[1734962756457,0.25745728,95259.0,95244.0,0.38280276]
[1734962756458,0.163842,95269.0,95266.0,0.052543]
[1734962756663,0.97348662,95267.0,95266.0,0.052543]
[1734962756863,1.2309439,95267.0,95266.0,0.052543]
[1734962757166,0.8701439,95267.0,95266.0,0.052543]
[1734962757468,0.25745728,95267.0,95266.0,0.052543]
[1734962757669,0.26045728,95267.0,95266.0,0.053543]
[1734962757967,0.26045728,95267.0,95266.0,0.07577236]
[1734962758173,0.25945728,95267.0,95266.0,0.07677236]
[1734962758368,0.25745728,95267.0,95266.0,0.07677236]
[1734962758572,0.25745728,95267.0,95266.0,0.09015303]
[1734962759268,0.1058,95296.0,95266.0,0.09015303]
[1734962759465,0.1125,95295.0,95274.0,0.3608]
[1734962759663,0.61268662,95283.0,95282.0,0.413334]
[1734962759864,0.05253,95290.0,95289.0,0.05253]
[1734962760160,0.25745728,95283.0,95282.0,0.413334]
[1734962760366,0.25745728,95283.0,95282.0,0.35230116]
[1734962760568,0.052538,95276.0,95272.0,0.05254]
[1734962760771,0.413338,95276.0,95275.0,0.30934701]
[1734962760973,1.02602462,95276.0,95275.0,0.30934701]
[1734962761172,0.25745728,95276.0,95275.0,0.30934701]
[1734962761778,0.25745728,95276.0,95274.0,0.052539]
[1734962762071,0.25745728,95275.0,95273.0,0.052539]
[1734962762270,0.3608,95306.0,95299.0,0.052525]
[1734962762470,0.71268662,95300.0,95299.0,0.052525]
[1734962762768,0.1,95300.0,95299.0,0.052525]
[1734962763371,0.35745728,95300.0,95299.0,0.052525]
[1734962763679,1.0236689,95300.0,95299.0,0.34833974]
[1734962763980,1.0236689,95300.0,95299.0,0.18223974]
[1734962764171,0.052529,95293.0,95292.0,0.37207282]
[1734962764371,0.30998628,95293.0,95292.0,0.37207282]
[1734962764577,0.052533,95285.0,95283.0,0.052534]
[1734962764776,0.25745728,95284.0,95283.0,0.052534]
[1734962765078,0.3608,95294.0,95293.0,0.052529]
[1734962765374,0.101,95300.0,95299.0,0.052525]
[1734962765578,0.9711439,95300.0,95290.0,0.05253]
[1734962765874,0.25745728,95287.0,95279.0,0.0238466]
[1734962766171,0.12764419,95290.0,95283.0,0.052534]
[1734962766378,0.25745728,95280.0,95279.0,0.0763826]
[1734962766763,0.8701439,95280.0,95279.0,0.0763826]
[1734962767181,0.25745728,95280.0,95279.0,0.0763826]
[1734962768079,0.8721439,95280.0,95279.0,0.0763826]
[1734962768378,0.65145579,95280.0,95279.0,0.0763826]
[1734962768576,0.65145579,95280.0,95279.0,0.00157436]
[1734962768789,0.65145579,95280.0,95263.0,0.02216343]
[1734962769082,0.052546,95261.0,95260.0,0.49196176]
[1734962769373,0.31000328,95261.0,95260.0,0.49136176]
[1734962769581,0.25745728,95261.0,95260.0,0.49136176]
[1734962770271,0.25745728,95261.0,95260.0,0.052546]
[1734962770476,0.25745728,95261.0,95260.0,0.07496622]
[1734962771286,0.25745728,95261.0,95260.0,0.02242022]
[1734962771476,0.65345579,95261.0,95253.0,0.05255]
[1734962771685,0.25745728,95257.0,95255.0,0.052549]
[1734962772178,0.25745728,95256.0,95255.0,0.052549]
[1734962772374,0.052552,95252.0,95249.0,0.38336013]
[1734962772584,0.25745728,95251.0,95249.0,0.38336013]
[1734962773771,0.25745728,95251.0,95249.0,0.38636013]
[1734962774486,0.25745728,95251.0,95249.0,0.38836013]
[1734962774671,0.25745728,95251.0,95250.0,0.052553]
[1734962774873,0.3608,95267.0,95261.0,0.052547]
[1734962775172,0.25745728,95256.0,95250.0,0.12764419]
[1734962775371,0.75479851,95267.0,95262.0,0.052547]
[1734962775372,0.75535852,95267.0,95262.0,0.052547]
[1734962775569,0.75479851,95267.0,95262.0,0.052547]
[1734962775871,0.75479851,95267.0,95249.0,0.38836013]
[1734962775872,0.25745728,95263.0,95254.0,0.052551]
[1734962776068,0.25745728,95255.0,95254.0,0.052551]
[1734962777280,0.65145579,95255.0,95254.0,0.052551]
[1734962777880,0.65145579,95255.0,95254.0,0.053551]
[1734962778479,0.65445579,95255.0,95254.0,0.053551]
[1734962778887,0.65645579,95255.0,95254.0,0.053551]
[1734962779084,0.25945728,95255.0,95254.0,0.053551]
[1734962779688,0.25945728,95255.0,95254.0,0.3492878]
[1734962780384,0.25745728,95255.0,95254.0,0.3492878]
[1734962780583,0.26245728,95255.0,95254.0,0.3492878]
[1734962781080,0.25945728,95255.0,95254.0,0.66237634]
[1734962781289,0.26245728,95255.0,95254.0,0.66337634]
[1734962781988,0.26245728,95255.0,95254.0,0.66237634]
[1734962781989,0.25945728,95255.0,95254.0,0.66237634]
[1734962782185,0.26245728,95255.0,95254.0,0.66237634]
[1734962782377,0.26045728,95255.0,95254.0,0.66237634]
[1734962782582,0.26245728,95255.0,95254.0,0.66237634]
[1734962783585,0.25745728,95255.0,95254.0,0.66337634]
[1734962783798,0.25945728,95255.0,95254.0,0.66337634]
[1734962783986,0.25945728,95255.0,95254.0,0.3492878]
[1734962785184,0.25945728,95255.0,95254.0,0.3482878]
[1734962785487,0.002,95255.0,95254.0,0.3492878]
[1734962785984,0.65345579,95255.0,95254.0,0.3482878]
[1734962786191,0.65345579,95255.0,95254.0,0.2967368]
[1734962786889,0.65345579,95255.0,95254.0,0.001]
[1734962787587,0.65445579,95255.0,95254.0,0.001]
[1734962787985,0.65145579,95255.0,95254.0,0.001]
[1734962788187,0.65445579,95255.0,95254.0,0.001]
[1734962788985,0.65445579,95255.0,95253.0,0.052551]
[1734962789292,0.25745728,95254.0,95253.0,0.052551]
[1734962789678,0.65145579,95254.0,95253.0,0.052551]
[1734962790490,0.003,95254.0,95253.0,0.053551]
[1734962791387,0.003,95254.0,95253.0,0.06499926]
[1734962791591,0.005,95254.0,95253.0,0.06499937]
[1734962792489,0.003,95254.0,95253.0,0.06599937]
[1734962792983,0.65145579,95254.0,95253.0,0.06499937]
[1734962793183,0.65545579,95254.0,95253.0,0.06399937]
[1734962793384,0.65545579,95254.0,95253.0,0.052551]
[1734962793583,0.65245579,95254.0,95253.0,0.052551]
[1734962793793,0.65545579,95254.0,95253.0,0.052551]
[1734962794288,0.65545579,95254.0,95253.0,0.06398885]
[1734962794793,0.65445579,95254.0,95253.0,0.01143785]
[1734962795382,0.25745728,95253.0,95252.0,0.16824466]
[1734962795685,0.25745728,95253.0,95252.0,0.052552]
[1734962795995,0.70400779,95253.0,95252.0,0.052552]
[1734962796291,0.65145579,95253.0,95249.0,0.02256013]
[1734962796593,0.31001028,95250.0,95249.0,0.052553]
[1734962796991,0.70400879,95250.0,95249.0,0.052553]
[1734962797590,0.70400879,95250.0,95249.0,0.053553]
[1734962797894,0.25745728,95250.0,95249.0,0.053553]
[1734962798086,0.26045728,95250.0,95249.0,0.053553]
[1734962798691,0.26345728,95250.0,95249.0,0.053553]
[1734962799391,0.26045728,95250.0,95249.0,0.053553]
[1734962799591,0.25845728,95250.0,95249.0,0.052553]
[1734962799782,0.26145728,95250.0,95249.0,0.052553]
[1734962800185,0.25845728,95250.0,95249.0,0.052553]
[1734962800393,0.26145728,95250.0,95249.0,0.052553]
[1734962801392,0.26145728,95250.0,95249.0,0.053553]
[1734962802505,0.26245728,95250.0,95249.0,0.053553]
[1734962802701,0.65645579,95250.0,95249.0,0.001]
[1734962803087,0.65445579,95250.0,95249.0,0.001]
[1734962803396,0.65445579,95250.0,95248.0,0.08656287]
[1734962803397,0.65645579,95250.0,95248.0,0.08656287]
[1734962803603,0.25745728,95249.0,95248.0,0.08656287]
[1734962804705,0.25745728,95249.0,95248.0,0.08756287]
[1734962805496,0.25945728,95249.0,95248.0,0.08756287]
[1734962806192,0.26245728,95249.0,95248.0,0.08756287]
[1734962806591,0.26245728,95249.0,95233.0,0.315842]
[1734962806592,0.31001928,95234.0,95233.0,0.19628258]
[1734962806798,0.67081928,95234.0,95208.0,0.3608]
[1734962807000,0.67081928,95234.0,95206.0,0.00157558]
[1734962807001,0.67082428,95225.0,95224.0,0.37702842]
[1734962808306,0.052574,95213.0,95212.0,0.34518237]
[1734962808501,0.67083128,95213.0,95212.0,0.38064184]
[1734962808800,0.67083128,95213.0,95187.0,0.3548]
[1734962808801,0.052588,95188.0,95187.0,0.3548]
[1734962809195,0.3608,95203.0,95187.0,0.3548]
[1734962809407,0.052584,95194.0,95192.0,0.052585]
[1734962810802,0.052584,95194.0,95192.0,0.055585]
[1734962811198,0.052584,95194.0,95192.0,0.054585]
[1734962811704,0.052584,95194.0,95192.0,0.057585]
[1734962812307,0.12353812,95200.0,95198.0,0.052582]
[1734962812495,0.12353812,95200.0,95199.0,0.3608]
[1734962812697,0.12353812,95200.0,95199.0,0.4597]
[1734962813096,0.12353812,95202.0,95200.0,0.052581]
[1734962815003,0.052575,95210.0,95208.0,0.052576]
[1734962815402,0.25745728,95209.0,95208.0,0.052576]
[1734962816103,0.31003328,95209.0,95208.0,0.055576]
[1734962816303,0.31003328,95209.0,95208.0,0.003]
[1734962816603,0.31003328,95209.0,95208.0,0.008]
[1734962816815,0.052581,95200.0,95199.0,0.3608]
[1734962816994,0.052583,95197.0,95196.0,0.052583]
[1734962817196,0.31004028,95197.0,95196.0,0.052583]
[1734962818715,0.31004028,95197.0,95196.0,0.053583]
[1734962819601,0.31104028,95197.0,95196.0,0.053583]
[1734962820908,0.31104028,95197.0,95196.0,0.03589342]
[1734962821102,0.301,95197.0,95161.0,0.2067]
[1734962821299,0.052599,95168.0,95165.0,0.0526]
[1734962821503,0.052599,95168.0,95153.0,0.052607]
[1734962821711,0.052605,95157.0,95156.0,0.052605]
[1734962822900,0.052606,95154.0,95153.0,0.03446285]
[1734962823105,0.3608,95158.0,95156.0,0.005]
[1734962823306,0.3608,95158.0,95136.0,0.00157649]
[1734962823501,0.052616,95138.0,95136.0,0.00157649]
[1734962824214,0.0351087,95160.0,95156.0,0.052605]
[1734962824509,0.1075121,95171.0,95170.0,0.052598]
[1734962824706,0.10342873,95171.0,95170.0,0.052598]
[1734962825613,0.05259,95183.0,95181.0,0.052591]
[1734962825912,0.3608,95188.0,95186.0,0.052588]
[1734962826107,0.15481759,95194.0,95193.0,0.052585]
[1734962826508,0.15481759,95204.0,95202.0,0.05258]
[1734962827108,0.21387767,95222.0,95221.0,0.052569]